bitfinex/quotes_SOLUSD_20240914
["timestamp","ask_amount","ask_price","bid_price","bid_amount"]
[1726333062221,0.12549,137.62,137.56,14.20917397]
[1726333072518,0.12549,137.62,137.55,14.20917397]
[1726333074116,0.12549,137.62,137.55,3.92986322]
[1726333074520,15.8441,137.61,137.55,3.92986322]
[1726333076418,15.8441,137.61,137.54,14.20917397]
[1726333076617,15.8441,137.61,137.55,3.9298356]
[1726333077038,15.8441,137.61,137.54,14.20917397]
[1726333077239,15.8441,137.61,137.55,3.9298356]
[1726333077540,15.8441,137.61,137.54,18.13900957]
[1726333077835,23.1111,137.61,137.54,3.9298356]
[1726333078036,0.12549,137.6,137.54,18.13900957]
[1726333078738,0.12549,137.6,137.55,14.20917397]
[1726333080319,22.051,137.61,137.55,14.20917397]
[1726333082443,0.12549,137.6,137.55,14.20917397]
[1726333082633,0.12549,137.6,137.54,18.13910062]
[1726333083847,0.12549,137.6,137.54,14.20917397]
[1726333087332,0.25098,137.6,137.53,18.39421564]
[1726333089556,0.25098,137.6,137.54,14.20917397]
[1726333090947,7.5749826,137.61,137.53,4.18540398]
[1726333091246,18.83943391,137.65,137.53,4.18540398]
[1726333091247,15.8441,137.65,137.6,14.20917397]
[1726333091449,15.8441,137.65,137.63,14.20917397]
[1726333095429,14.04150568,137.67,137.63,14.20917397]
[1726333095821,7.83460568,137.67,137.64,15.13067887]
[1726333096026,0.2551418,137.67,137.64,15.13067887]
[1726333096526,0.2551418,137.67,137.64,14.20917397]
[1726333096852,0.2551418,137.67,137.62,14.20917397]
[1726333099252,0.2551418,137.67,137.63,14.20917397]
[1726333104104,0.2551418,137.67,137.58,3.92828506]
[1726333104353,0.2551418,137.67,137.62,14.20917397]
[1726333104354,0.12549,137.66,137.62,14.20917397]
[1726333105446,0.12549,137.66,137.63,14.20917397]
[1726333105650,0.12549,137.66,137.62,14.20917397]
[1726333107863,0.2551418,137.67,137.62,14.20917397]
[1726333108063,0.2551418,137.67,137.63,14.20917397]
[1726333119978,0.2551418,137.67,137.62,14.20917397]
[1726333120277,0.12549,137.66,137.62,14.20917397]
[1726333126604,0.12549,137.66,137.63,14.20917397]
[1726333133384,0.2551418,137.67,137.63,14.20917397]
[1726333141673,0.2551418,137.67,137.58,20.25098]
[1726333141873,0.12549,137.66,137.61,14.20917397]
[1726333142074,0.12549,137.66,137.62,14.20917397]
[1726333144803,0.12549,137.66,137.63,14.20917397]
[1726333151008,0.2551418,137.67,137.63,14.20917397]
[1726333151479,0.2551418,137.67,137.66,14.20917397]
[1726333173112,0.2551418,137.67,137.63,16.1293]
[1726333173315,0.2551418,137.67,137.66,14.20917397]
[1726333188941,0.2551418,137.67,137.65,14.20917397]
[1726333190035,0.2551418,137.67,137.66,14.20917397]
[1726333190234,0.2551418,137.67,137.66,37.98605797]
[1726333191515,0.2551418,137.67,137.66,14.20917397]
[1726333196040,0.2551418,137.67,137.65,6.08]
[1726333196341,0.2551418,137.67,137.66,14.20917397]
[1726333200824,0.2551418,137.67,137.63,16.1293]
[1726333201130,0.2551418,137.67,137.63,14.20917397]
[1726333201449,0.2551418,137.67,137.62,14.20917397]
[1726333201769,7.5190418,137.67,137.59,6.0227]
[1726333201928,0.12549,137.66,137.57,15.3692]
[1726333202130,0.37647,137.66,137.57,15.3692]
[1726333202328,22.75277,137.66,137.57,15.3692]
[1726333202549,22.75277,137.66,137.59,14.20917397]
[1726333203248,0.25098,137.64,137.58,14.20917397]
[1726333203423,0.12549,137.63,137.54,15.3692]
[1726333203619,0.12549,137.63,137.58,14.20917397]
[1726333205143,0.12549,137.63,137.54,15.3692]
[1726333205346,0.12549,137.63,137.56,14.20917397]
[1726333205723,7.51728,137.62,137.55,14.20917397]
[1726333206028,15.36298,137.61,137.55,14.20917397]
[1726333207245,22.62988,137.61,137.53,0.2551418]
[1726333207426,22.62988,137.61,137.53,14.46431577]
[1726333207427,0.25098,137.6,137.53,14.46431577]
[1726333207627,0.12549,137.59,137.53,14.46431577]
[1726333207924,0.12549,137.6,137.54,14.20917397]
[1726333209336,0.12549,137.6,137.53,14.46431577]
[1726333211553,0.12549,137.59,137.53,14.46431577]
[1726333211751,0.12549,137.59,137.54,14.20917397]
[1726333211752,0.25098,137.59,137.54,14.20917397]
[1726333212357,7.57490558,137.6,137.55,14.20917397]
[1726333212650,15.112,137.61,137.57,14.20917397]
[1726333213869,15.112,137.61,137.56,14.20917397]
[1726333214361,15.112,137.61,137.55,14.20917397]
[1726333215657,15.112,137.61,137.54,14.20917397]
[1726333229078,0.12549,137.6,137.53,38.24119977]
[1726333229290,7.64397,137.6,137.53,0.2551418]
[1726333229662,21.35342509,137.59,137.53,0.2551418]
[1726333229979,23.0681,137.57,137.53,0.2551418]
[1726333233171,7.52068,137.56,137.53,0.2551418]
[1726333233382,0.12549,137.55,137.53,0.2551418]
[1726333236369,17.06551149,137.57,137.53,0.2551418]
[1726333236564,15.7991,137.57,137.53,0.2551418]
[1726333237459,20.74430135,137.58,137.54,14.20917397]
[1726333237663,20.74430135,137.58,137.53,0.2551418]
[1726333240387,20.74430135,137.58,137.53,14.46431577]
[1726333241493,20.74430135,137.58,137.53,0.2551418]
[1726333241670,0.25098,137.57,137.53,0.2551418]
[1726333244478,0.25098,137.57,137.53,14.46431577]
[1726333244670,0.12549,137.57,137.53,14.46431577]
[1726333244870,0.37647,137.58,137.53,14.46431577]
[1726333248597,0.37647,137.58,137.53,0.2551418]
[1726333249495,31.421854,137.58,137.53,0.2551418]
[1726333250500,0.25098,137.56,137.53,0.2551418]
[1726333250704,0.12549,137.55,137.53,0.2551418]
[1726333254597,0.12549,137.56,137.53,0.2551418]
[1726333254804,0.25098,137.56,137.53,0.2551418]
[1726333262316,7.58590778,137.57,137.53,14.46431577]
[1726333262489,7.58590778,137.57,137.53,18.39552412]
[1726333262695,7.58590778,137.57,137.53,0.2551418]
[1726333263717,14.85490778,137.57,137.53,0.2551418]
[1726333263914,0.25098,137.56,137.53,0.2551418]
[1726333264693,7.83535746,137.56,137.53,0.2551418]
[1726333271223,7.83535746,137.56,137.53,4.18623498]
[1726333271407,7.83535746,137.56,137.53,0.2551418]
[1726333271608,7.58437746,137.56,137.53,0.2551418]
[1726333271925,0.12549,137.57,137.53,0.2551418]
[1726333272219,0.12549,137.57,137.54,3.93109318]
[1726333273205,0.12549,137.57,137.53,14.46431577]
[1726333273422,0.12549,137.57,137.54,3.93075442]
[1726333273605,0.12549,137.57,137.53,14.46431577]
[1726333273820,0.12549,137.57,137.54,3.93075387]
[1726333274021,0.12549,137.57,137.53,0.2551418]
[1726333274208,0.12549,137.57,137.54,3.93075442]
[1726333274408,0.12549,137.57,137.53,0.2551418]
[1726333274609,0.12549,137.57,137.54,3.93075387]
[1726333274932,0.12549,137.57,137.53,0.2551418]
[1726333275233,0.12549,137.57,137.54,3.93075442]
[1726333275409,0.12549,137.57,137.53,0.2551418]
[1726333275610,0.12549,137.57,137.54,3.93097915]
[1726333275923,0.12549,137.57,137.53,0.2551418]
[1726333276310,31.296864,137.57,137.53,0.2551418]
[1726333286644,0.25098,137.57,137.53,0.2551418]
[1726333289753,0.12549,137.57,137.53,0.2551418]
[1726333289935,7.58246951,137.58,137.53,0.2551418]
[1726333291220,14.85096951,137.58,137.53,0.2551418]
[1726333292537,0.37647,137.57,137.53,0.2551418]
[1726333295054,0.12549,137.57,137.53,0.2551418]
[1726333296861,0.25098,137.57,137.53,0.2551418]
[1726333297830,7.39609,137.54,137.53,0.2551418]
[1726333298027,31.423954,137.54,137.53,0.2551418]
[1726333301445,0.25098,137.54,137.53,0.2551418]
[1726333303133,0.12549,137.54,137.53,0.2551418]
[1726333303560,7.2702,137.55,137.53,0.2551418]
[1726333303948,0.12549,137.55,137.53,0.2551418]
[1726333304269,0.25098,137.55,137.53,0.2551418]
[1726333305037,7.52108,137.55,137.53,0.2551418]
[1726333307236,24.027864,137.55,137.53,0.2551418]
[1726333307442,7.52108,137.55,137.53,0.2551418]
[1726333307955,0.25098,137.55,137.53,0.2551418]
[1726333309164,7.52108,137.55,137.53,0.2551418]
[1726333313565,7.39609,137.54,137.53,0.2551418]
[1726333313769,7.52158,137.54,137.53,0.2551418]
[1726333313949,31.423954,137.54,137.53,0.2551418]
[1726333314290,39.00037292,137.54,137.53,0.2551418]
[1726333321046,59.00037292,137.54,137.53,1e-08]
[1726333321248,59.00037292,137.54,137.51,17.7759032]
[1726333321249,31.299464,137.52,137.51,17.7759032]
[1726333321576,31.424954,137.52,137.51,17.7759032]
[1726333324775,38.99927243,137.52,137.51,17.7759032]
[1726333324957,38.99927243,137.52,137.51,17.2759032]
[1726333329463,79.23249961,137.52,137.51,17.2759032]
[1726333330757,51.300564,137.5,137.49,0.2551418]
[1726333331082,51.426054,137.5,137.49,0.2551418]
[1726333332187,72.02131696,137.5,137.49,0.2551418]
[1726333332559,52.02131696,137.5,137.49,0.2551418]
[1726333333091,72.02131696,137.5,137.49,0.2551418]
[1726333333658,7.2749,137.46,137.44,0.2551418]
[1726333333987,0.25098,137.45,137.44,0.2551418]
[1726333334892,31.428654,137.45,137.44,0.2551418]
[1726333335381,31.428654,137.45,137.4,20.8717836]
[1726333335382,7.2762,137.44,137.4,20.8717836]
[1726333335554,7.65287,137.43,137.4,20.8717836]
[1726333335754,23.776884,137.45,137.4,28.1492836]
[1726333336003,0.25098,137.44,137.4,28.1492836]
[1726333336363,0.12549,137.43,137.4,28.1492836]
[1726333338997,7.52708,137.44,137.4,28.1492836]
[1726333339485,0.25098,137.44,137.4,28.1492836]
[1726333348067,0.25098,137.44,137.4,7.2775]
[1726333348271,7.82904483,137.44,137.4,7.2775]
[1726333349299,15.10504483,137.44,137.4,7.2775]
[1726333349993,0.25098,137.43,137.4,7.2775]
[1726333350182,0.12549,137.42,137.39,7.2784]
[1726333350684,0.12549,137.42,137.4,7.2778]
[1726333351090,0.12549,137.43,137.4,7.2778]
[1726333351282,0.25098,137.43,137.4,7.2778]
[1726333353099,0.12549,137.42,137.37,22.0333]
[1726333353279,0.12549,137.41,137.37,7.2794]
[1726333353478,0.25098,137.41,137.38,7.2789]
[1726333354604,0.25098,137.41,137.37,7.2795]
[1726333354806,0.12549,137.4,137.37,7.2795]
[1726333355102,0.25098,137.4,137.37,7.2795]
[1726333355304,0.12549,137.4,137.37,7.2795]
[1726333355494,0.12549,137.4,137.38,7.2789]
[1726333355708,0.25098,137.41,137.38,7.2789]
[1726333357604,0.25098,137.41,137.37,7.2795]
[1726333357808,0.12549,137.4,137.36,7.5351418]
[1726333357987,23.902374,137.4,137.36,7.5351418]
[1726333358188,0.25098,137.39,137.36,7.5351418]
[1726333361200,14.85517884,137.41,137.38,7.2787]
[1726333361201,7.57767884,137.41,137.38,7.2787]
[1726333366015,0.12549,137.4,137.37,7.2794]
[1726333366208,0.25098,137.4,137.37,7.2794]
[1726333366802,24.027864,137.4,137.37,7.2794]
[1726333367801,0.12549,137.39,137.37,7.2794]
[1726333368301,0.25098,137.39,137.37,7.2794]
[1726333375219,0.25098,137.39,137.38,7.279]
[1726333375424,7.57767884,137.41,137.38,7.279]
[1726333376104,7.57767884,137.41,137.37,7.2795]
[1726333376927,0.37647,137.4,137.37,7.2795]
[1726333381411,24.153354,137.4,137.37,7.2795]
[1726333381918,0.37647,137.4,137.37,7.2795]
[1726333382525,0.37647,137.4,137.38,7.279]
[1726333382719,0.12549,137.4,137.36,14.46431577]
[1726333382938,7.57767884,137.41,137.37,14.20917397]
[1726333384363,7.57767884,137.41,137.38,7.279]
[1726333385339,7.57767884,137.41,137.39,7.2782]
[1726333385682,14.22684249,137.45,137.39,7.2784]
[1726333385960,14.85339782,137.44,137.39,7.2784]
[1726333386732,24.153354,137.43,137.39,7.2784]
[1726333389853,24.153354,137.43,137.4,7.2779]
[1726333391885,0.37647,137.43,137.41,7.2774]
[1726333392170,7.57709782,137.44,137.42,7.2769]
[1726333392344,7.57709782,137.44,137.41,14.20917397]
[1726333393072,7.57709782,137.44,137.42,7.2768]
[1726333393458,0.12549,137.43,137.42,7.2768]
[1726333393783,24.027864,137.46,137.42,7.2768]
[1726333394082,0.12549,137.45,137.42,7.2768]
[1726333398772,0.12549,137.45,137.42,14.20917397]
[1726333398959,0.12549,137.45,137.43,7.2764]
[1726333410568,0.12549,137.45,137.43,21.48557397]
[1726333412592,7.70291745,137.46,137.44,7.2759]
[1726333412797,7.57742745,137.46,137.44,14.20917397]
[1726333413088,24.027864,137.48,137.44,14.20917397]
[1726333413274,0.12549,137.47,137.44,14.20917397]
[1726333413590,24.027864,137.48,137.44,14.20917397]
[1726333414188,31.301764,137.48,137.41,22.21]
[1726333414402,31.301764,137.48,137.43,14.20917397]
[1726333414871,0.12549,137.47,137.43,14.20917397]
[1726333415270,0.12549,137.47,137.44,7.2755]
[1726333416397,0.12549,137.47,137.45,7.2753]
[1726333431499,0.25098,137.48,137.46,7.2748]
[1726333431804,0.12549,137.48,137.46,7.2748]
[1726333432602,0.12549,137.48,137.45,21.48437397]
[1726333433494,0.25098,137.48,137.45,21.48437397]
[1726333435309,24.027864,137.48,137.45,7.2752]
[1726333435512,24.027864,137.48,137.41,22.21]
[1726333435513,0.12549,137.47,137.44,7.2757]
[1726333435699,0.25098,137.47,137.44,7.2757]
[1726333441321,0.12549,137.46,137.43,7.2763]
[1726333441513,7.83392193,137.46,137.43,7.2763]
[1726333456534,23.902374,137.45,137.41,14.20917397]
[1726333456701,23.902374,137.45,137.41,21.48617397]
[1726333456702,0.25098,137.44,137.41,21.48617397]
[1726333457027,7.58294193,137.46,137.43,7.2764]
[1726333457226,0.12549,137.47,137.43,14.20917397]
[1726333457522,24.153354,137.47,137.44,14.20917397]
[1726333457726,24.153354,137.47,137.43,14.20917397]
[1726333458019,7.58300579,137.48,137.46,21.48357397]
[1726333458202,36.60097862,137.5,137.46,21.48357397]
[1726333458520,44.18810759,137.5,137.46,21.48357397]
[1726333459203,24.027864,137.49,137.46,21.48357397]
[1726333459405,0.25098,137.48,137.46,7.2744]
[1726333472058,0.25098,137.48,137.44,14.20917397]
[1726333472059,0.25098,137.48,137.45,7.2752]
[1726333473411,7.84318042,137.48,137.45,7.2752]
[1726333481636,0.12549,137.46,137.43,7.2763]
[1726333481835,0.25098,137.46,137.43,7.2763]
[1726333491044,23.902374,137.45,137.39,21.5357]
[1726333491237,0.12549,137.43,137.39,14.20917397]
[1726333491444,0.25098,137.43,137.39,14.20917397]
[1726333492438,0.25098,137.43,137.41,7.2774]
[1726333497648,0.25098,137.43,137.36,6.3769418]
[1726333497943,0.25098,137.42,137.39,7.278]
[1726333498750,0.25098,137.42,137.4,7.2778]
[1726333503261,0.12549,137.42,137.41,7.2774]
[1726333503552,31.48730171,137.43,137.41,7.2774]
[1726333504328,7.58492771,137.43,137.41,7.2774]
[1726333505031,24.153354,137.44,137.41,7.2774]
[1726333517166,31.429354,137.44,137.4,7.2779]
[1726333517365,7.58197725,137.43,137.4,7.2779]
[1726333517553,0.25098,137.42,137.4,7.2779]
[1726333517748,0.25098,137.42,137.36,20.58611577]
[1726333517956,7.52808,137.42,137.36,20.58611577]
[1726333518163,23.902374,137.41,137.36,6.3769418]
[1726333518338,0.12549,137.4,137.36,6.3769418]
[1726333519479,0.12549,137.4,137.38,7.2789]
[1726333522345,0.12549,137.42,137.38,7.2789]
[1726333522551,23.902374,137.42,137.38,7.2789]
[1726333522766,0.12549,137.41,137.39,7.2784]
[1726333528256,0.12549,137.41,137.38,7.2789]
[1726333528566,0.25098,137.41,137.38,7.2789]
[1726333530981,0.12549,137.4,137.37,7.2794]
[1726333531152,0.25098,137.4,137.37,7.2794]
[1726333533481,0.25098,137.39,137.36,7.5350418]
[1726333534577,0.12549,137.39,137.37,7.2794]
[1726333548388,0.25098,137.39,137.36,7.5350418]
[1726333555598,0.25098,137.39,137.36,11.47142565]
[1726333555897,0.25098,137.39,137.36,7.5350418]
[1726333557283,8.30917981,137.41,137.36,0.2551418]
[1726333557813,7.2791,137.38,137.36,0.2551418]
[1726333558187,7.2796,137.37,137.36,0.2551418]
[1726333558497,24.027864,137.38,137.36,0.2551418]
[1726333558699,0.12549,137.37,137.36,0.2551418]
[1726333562801,7.56728988,137.39,137.36,7.5351418]
[1726333568586,7.56728988,137.39,137.37,7.2795]
[1726333570590,7.56728988,137.39,137.36,7.5351418]
[1726333574505,0.25098,137.38,137.36,0.2551418]
[1726333575407,0.12549,137.37,137.36,0.2551418]
[1726333581597,31.432954,137.37,137.36,0.2551418]
[1726333582015,38.99961244,137.37,137.36,0.2551418]
[1726333584700,74.23991244,137.37,137.36,0.2551418]
[1726333585093,54.23991244,137.37,137.36,0.2551418]
[1726333585288,54.11442244,137.37,137.36,0.2551418]
[1726333586818,54.23991244,137.37,137.36,0.2551418]
[1726333589412,82.54909225,137.37,137.36,0.2551418]
[1726333590116,82.54909225,137.37,137.32,0.2551418]
[1726333590117,51.309564,137.33,137.32,0.2551418]
[1726333590318,44.027864,137.32,137.28,0.2551418]
[1726333590529,0.12549,137.31,137.28,0.2551418]
[1726333590823,20.25098,137.3,137.28,0.2551418]
[1726333591201,0.25098,137.3,137.28,0.2551418]
[1726333592625,7.68710388,137.31,137.28,7.5392418]
[1726333592809,7.68710388,137.31,137.29,7.2837]
[1726333594815,0.12549,137.31,137.29,7.2837]
[1726333599601,0.25098,137.31,137.28,7.5393418]
[1726333600208,0.12549,137.3,137.28,0.2551418]
[1726333600409,31.311664,137.29,137.28,0.2551418]
[1726333600695,31.437154,137.29,137.28,0.2551418]
[1726333601200,51.437154,137.29,137.28,0.2551418]
[1726333601402,51.437154,137.29,137.24,0.2551418]
[1726333601403,51.061684,137.28,137.24,0.2551418]
[1726333601602,0.37647,137.27,137.24,0.2551418]
[1726333602311,0.25098,137.25,137.24,0.2551418]
[1726333602513,7.2869,137.24,137.2,0.0102836]
[1726333602707,0.37647,137.23,137.2,0.0102836]
[1726333603320,15.84287,137.23,137.2,0.0102836]
[1726333603706,0.25098,137.21,137.2,0.0102836]
[1726333603906,0.37647,137.21,137.17,7.4684968]
[1726333604223,0.25098,137.2,137.17,7.4684968]
[1726333604413,0.12549,137.2,137.17,0.1783968]
[1726333604614,0.12549,137.2,137.12,0.3017876]
[1726333604933,20.0,137.23,137.2,6.7886]
[1726333605098,0.25098,137.22,137.2,6.7886]
[1726333605300,18.98383781,137.24,137.12,0.3017876]
[1726333605301,18.98383781,137.24,137.21,7.288]
[1726333606631,0.12549,137.23,137.21,7.288]
[1726333606833,0.25098,137.23,137.21,7.288]
[1726333607336,0.25098,137.23,137.17,6.0493]
[1726333607337,0.25098,137.23,137.22,7.2875]
[1726333607506,18.98383781,137.24,137.23,7.287]
[1726333607706,19.10932781,137.24,137.23,7.287]
[1726333609816,19.36030781,137.24,137.23,7.287]
[1726333610614,19.36030781,137.24,137.22,14.20917397]
[1726333610615,19.36030781,137.24,137.22,21.49657397]
[1726333612518,0.37647,137.24,137.22,21.49657397]
[1726333613238,0.12549,137.24,137.22,21.49657397]
[1726333613528,0.25098,137.26,137.22,21.49657397]
[1726333613843,0.12549,137.25,137.22,21.49657397]
[1726333614931,0.12549,137.25,137.23,7.2869]
[1726333620608,0.12549,137.25,137.22,7.2874]
[1726333629627,0.25098,137.24,137.2,14.20917397]
[1726333629822,0.12549,137.23,137.17,6.0493]
[1726333630024,0.25098,137.22,137.17,6.0493]
[1726333630228,0.12549,137.21,137.17,6.0493]
[1726333630427,0.12549,137.21,137.18,7.2896]
[1726333630737,0.12549,137.21,137.19,7.2891]
[1726333632246,0.12549,137.21,137.17,6.0493]
[1726333632534,0.12549,137.21,137.13,6.4905]
[1726333632738,0.12549,137.21,137.15,14.20917397]
[1726333633239,0.25098,137.2,137.13,6.4905]
[1726333633441,0.12549,137.19,137.15,14.20917397]
[1726333633637,0.12549,137.19,137.13,5.19967397]
[1726333633936,0.12549,137.19,137.15,14.20917397]
[1726333634446,0.12549,137.19,137.13,5.19967397]
[1726333634640,0.12549,137.19,137.14,14.20917397]
[1726333634822,0.12549,137.19,137.16,7.2906]
[1726333635147,20.0,137.22,137.17,14.20917397]
[1726333635320,0.12549,137.21,137.17,14.20917397]
[1726333635520,0.12549,137.21,137.17,13.96468697]
[1726333636346,0.25098,137.21,137.19,7.2891]
[1726333636832,0.12549,137.21,137.19,7.2891]
[1726333637051,0.25098,137.22,137.19,7.2891]
[1726333637836,0.25098,137.22,137.18,14.20917397]
[1726333638020,0.25098,137.22,137.2,7.2885]
[1726333638219,22.9213918,137.23,137.2,7.2885]
[1726333638549,15.2380755,137.23,137.21,14.20917397]
[1726333638714,15.2380755,137.23,137.22,14.20917397]
[1726333638910,7.55422977,137.26,137.22,14.20917397]
[1726333639360,7.55422977,137.26,137.22,21.49667397]
[1726333639721,7.55422977,137.26,137.22,7.2875]
[1726333640038,0.25098,137.25,137.22,7.2875]
[1726333640423,0.12549,137.24,137.22,7.2875]
[1726333640829,7.55422977,137.26,137.23,7.287]
[1726333641342,7.55422977,137.26,137.24,7.2864]
[1726333642428,7.55422977,137.26,137.23,7.2869]
[1726333646751,7.55422977,137.26,137.24,7.2863]
[1726333647054,0.25098,137.27,137.24,7.2863]
[1726333647223,0.12549,137.27,137.24,21.49547397]
[1726333648448,0.12549,137.27,137.24,7.2863]
[1726333649244,0.12549,137.27,137.23,7.2869]
[1726333649940,0.12549,137.26,137.22,7.2874]
[1726333650137,0.12549,137.25,137.22,7.2874]
[1726333650441,0.25098,137.25,137.21,3.94090666]
[1726333650638,0.25098,137.25,137.21,11.22880666]
[1726333650839,0.25098,137.25,137.22,7.2874]
[1726333652563,0.25098,137.25,137.22,21.49657397]
[1726333653435,0.12549,137.25,137.23,7.2869]
[1726333653851,0.25098,137.26,137.23,7.2869]
[1726333654054,9.12174497,137.29,137.22,14.20917397]
[1726333654362,9.12174497,137.29,137.26,7.2852]
[1726333655046,9.12174497,137.29,137.25,21.49497397]
[1726333655245,9.12174497,137.29,137.25,7.2858]
[1726333655632,0.37647,137.28,137.25,7.2858]
[1726333657846,0.25098,137.28,137.25,7.2858]
[1726333659856,0.12549,137.28,137.26,7.2853]
[1726333661937,0.3017876,137.29,137.26,7.2853]
[1726333663954,7.66097,137.28,137.23,7.2868]
[1726333664461,7.66097,137.28,137.24,7.2863]
[1726333665766,7.9408338,137.28,137.24,7.2863]
[1726333669169,0.25098,137.26,137.23,7.2869]
[1726333669340,0.12549,137.25,137.23,7.2869]
[1726333671354,0.25098,137.27,137.24,7.2864]
[1726333671553,0.12549,137.26,137.24,7.2864]
[1726333673642,0.12549,137.26,137.23,7.2869]
[1726333681955,7.55090208,137.27,137.23,14.20917397]
[1726333682245,0.2798638,137.28,137.26,7.2854]
[1726333683070,0.2798638,137.28,137.25,7.2858]
[1726333683664,0.12549,137.27,137.25,7.2858]
[1726333684971,0.2798638,137.28,137.26,7.2853]
[1726333687758,0.2798638,137.28,137.25,7.2857]
[1726333689354,0.12549,137.27,137.25,7.2857]
[1726333691753,0.25098,137.26,137.19,23.776884]
[1726333691958,0.25098,137.26,137.2,14.20917397]
[1726333692467,0.12549,137.27,137.21,14.20917397]
[1726333692672,0.12549,137.27,137.22,14.20917397]
[1726333694071,0.2798638,137.28,137.25,7.2856]
[1726333694281,0.2798638,137.28,137.26,7.2852]
[1726333698578,0.2798638,137.28,137.24,14.20917397]
[1726333699590,0.2798638,137.28,137.19,23.776884]
[1726333699770,0.2798638,137.28,137.23,14.20917397]
[1726333700466,0.2798638,137.28,137.22,14.20917397]
[1726333700677,7.53588,137.27,137.18,23.0568]
[1726333700975,0.12549,137.26,137.2,14.20917397]
[1726333701682,0.12549,137.26,137.21,14.20917397]
[1726333702106,0.12549,137.26,137.19,23.776884]
[1726333702581,0.12549,137.26,137.2,14.20917397]
[1726333705561,0.12549,137.26,137.21,14.20917397]
[1726333706080,0.12549,137.26,137.22,14.20917397]
[1726333710808,0.12549,137.26,137.21,14.20917397]
[1726333712005,22.84398741,137.28,137.23,14.20917397]
[1726333713196,22.84398741,137.28,137.22,14.20917397]
[1726333713909,0.12549,137.27,137.22,14.20917397]
[1726333717298,0.25098,137.27,137.22,14.20917397]
[1726333719192,0.25098,137.27,137.18,23.0568]
[1726333719193,0.25098,137.26,137.18,23.0568]
[1726333719388,0.12549,137.25,137.18,23.0568]
[1726333719715,0.12549,137.25,137.2,14.20917397]
[1726333719929,0.25098,137.25,137.18,23.0568]
[1726333720216,0.25098,137.25,137.13,0.2363704]
[1726333720217,7.53708,137.25,137.15,21.6247]
[1726333720528,0.25098,137.24,137.18,14.20917397]
[1726333720816,0.25098,137.23,137.19,14.20917397]
[1726333722420,0.25098,137.23,137.16,23.776884]
[1726333722708,0.25098,137.23,137.18,14.20917397]
[1726333723016,0.25098,137.23,137.19,14.20917397]
[1726333728216,0.25098,137.22,137.18,14.20917397]
[1726333728406,0.25098,137.22,137.17,14.20917397]
[1726333729529,7.53878,137.22,137.13,0.2363704]
[1726333729737,0.25098,137.2,137.13,14.44554437]
[1726333729910,0.12549,137.19,137.14,14.20917397]
[1726333730241,22.3488,137.24,137.18,14.20917397]
[1726333730242,20.0,137.23,137.18,14.20917397]
[1726333730524,20.12549,137.23,137.18,14.20917397]
[1726333730731,7.54140672,137.22,137.18,14.20917397]
[1726333731324,20.12549,137.23,137.18,14.20917397]
[1726333731627,0.37647,137.23,137.18,14.20917397]
[1726333732016,0.37647,137.23,137.19,14.20917397]
[1726333732410,0.12549,137.23,137.2,14.20917397]
[1726333732610,1.26689037,137.27,137.22,14.20917397]
[1726333733008,1.26689037,137.27,137.23,14.20917397]
[1726333733217,22.4633638,137.28,137.23,14.20917397]
[1726333733632,22.4633638,137.28,137.24,14.20917397]
[1726333735629,0.37647,137.27,137.24,14.20917397]
[1726333735832,0.37647,137.27,137.23,14.20917397]
[1726333738829,0.37647,137.27,137.22,14.20917397]
[1726333740238,16.4532638,137.28,137.23,14.20917397]
[1726333740441,16.4532638,137.28,137.24,14.20917397]
[1726333742222,16.4532638,137.28,137.17,0.12549]
[1726333742223,16.4532638,137.28,137.25,14.20917397]
[1726333745143,16.4532638,137.28,137.24,14.20917397]
[1726333747549,0.2798638,137.28,137.24,14.20917397]
[1726333749054,0.2798638,137.28,137.23,14.20917397]
[1726333751650,0.2798638,137.28,137.24,14.20917397]
[1726333769750,0.2798638,137.28,137.25,14.20917397]
[1726333771665,0.2798638,137.28,137.24,14.20917397]
[1726333774047,0.2798638,137.28,137.23,18.14921958]
[1726333774360,0.2798638,137.28,137.23,14.20917397]
[1726333774559,0.2798638,137.28,137.23,18.14933334]
[1726333775074,0.2798638,137.28,137.23,14.20917397]
[1726333775955,0.2798638,137.28,137.22,23.776884]
[1726333776161,0.2798638,137.28,137.23,3.94032908]
[1726333776366,0.2798638,137.28,137.23,18.14950305]